Cogmind - Beta 16 @@@ ROGUE MODE // 2025.11.06 @ 23:22:59 Player: ChromeKnight Result: Self-destructed Performance ------------- Evolutions (8) 4000 Regions Visited (26) 5200 Robots Destroyed (239) 1195 Value Destroyed (9835) 9835 Prototype IDs (47) 940 Alien Tech Used (2) 400 Bonus (1820) 1820 TOTAL SCORE: 23390 Bonus ------- High Alert Combat Kills 849 Follower Combat Kills 2441 Network Hubs Disabled 200 Registered with UFD 300 Met Optimus in HQ 500 Destroyed Z-Imprinter 1000 Triggered Deep Caves Wall 500 Exposed GOLEM Chamber 500 Met Zhirov 300 Built Enhanced Grunts 300 Friendly Fire -5070 Cogmind --------- Core Integrity 373/1450 Matter 293/300 Energy 99/100 System Corruption 19% Temperature Cool (0) Movement Core (50) Location -2/Research Parts ------- > --- POWER (2) -------- (None) > --- PROPULSION (6) --- (None) > --- UTILITY (13) ----- Advanced Signal Interpreter > --- WEAPON (2) ------- (None) > --- INVENTORY (5) ---- Experimental Terrain Scanner Zionite Weapon Casing Advanced System Restoration Module Dimensional Node Initializer Thermal Lance Peak State ------------ > --- POWER ------------ Assembled Flux Generator > --- PROPULSION ------- Advanced VSS Leg Biometal Leg Biometal Leg Biometal Leg Assembled Alloy Leg Assembled Alloy Leg > --- UTILITY ---------- Assembled Nanovents Assembled Nanovents Assembled Nanovents Large Storage Unit Assembled Biocell Array Assembled Biocell Array Assembled Suspension Frame Advanced Signal Interpreter Assembled Combat Suite Assembled Alloy Armor Assembled Alloy Armor GOLEM Unit > --- WEAPON ----------- Assembled Focal Cannon Assembled Focal Cannon > --- INVENTORY -------- Zionite Light DM Reactor Thunder Leg Myomer Leg Myomer Leg Myomer Leg Advanced Sensor Array Experimental Terrain Scanner Zionite Weapon Casing Zionite Weapon Casing Advanced System Restoration Module GOLEM Unit Dimensional Node Initializer Transdimensional Reconstructor Thermal Lance [Rating: 198] Favorites ----------- Power Assembled Flux Generator Engine Cooled Ion Engine Power Core Micro Nuclear Core Reactor Assembled Flux Generator Propulsion Light Treads Treads Light Treads Leg Assembled Alloy Leg Hover Unit Zionite Glidesys I Flight Unit VTOL Module Utility Assembled Nanovents Device Assembled Nanovents Storage Medium Storage Unit Processor Improved Signal Interpreter Hackware Makeshift Hacking Suite Protection Assembled Alloy Armor Weapon Assembled Focal Cannon Energy Gun Heavy Riot Gun Energy Cannon Assembled Focal Cannon Ballistic Gun Light Assault Rifle Launcher Rocket Launcher Special Weapon Junk Cannon Piercing Weapon Thermal Lance Build | -11 -10 -10 -9 -9 -9 -9 -6 -6 -6 -6 -6 -6 -6 -5 -5 -5 -5 -5 -4 -4 -4 -4 -4 -4 -3 -2 ------- Run | Yrd Mat Min Mat Sto Rec Scr Fac Was Fac Low Low Zio Dee Pro Fac Upp Upp Zhi Pro Fac Ext Cet Arc Hub Res Res Slots Evolved 16 | . . . 2 . . . 6 . . . . . . . 2 . . . . 2 . . . . 2 2 Power 1 | . . . . . . . 1 . . . . . . . . . . . . . . . . . . . Propulsion 4 | . . . 2 . . . 2 . . . . . . . . . . . . . . . . . . . Utility 11 | . . . . . . . 3 . . . . . . . 2 . . . . 2 . . . . 2 2 Weapon . | . . . . . . . . . . . . . . . . . . . . . . . . . . . Parts Attached 150 | 6 6 1 16 20 1 12 15 1 7 2 1 3 27 1 8 . 2 5 . . 1 . . 2 6 7 Power 11 | 1 . . 2 1 . 2 2 . 1 . . . 2 . . . . . . . . . . . . . Engine 6 | 1 . . 2 1 . 1 1 . . . . . . . . . . . . . . . . . . . Core 3 | . . . . . . 1 1 . 1 . . . . . . . . . . . . . . . . . Reactor 2 | . . . . . . . . . . . . . 2 . . . . . . . . . . . . . Propulsion 68 | 2 . 1 9 12 1 4 5 . 3 . 1 . 8 . 8 . 1 3 . . 1 . . 1 3 5 Treads 27 | 2 . 1 9 11 1 3 . . . . . . . . . . . . . . . . . . . . Leg 22 | . . . . . . . . . . . . . 1 . 7 . 1 3 . . 1 . . 1 3 5 Wheel . | . . . . . . . . . . . . . . . . . . . . . . . . . . . Hover 6 | . . . . . . . . . . . . . 6 . . . . . . . . . . . . . Flight 13 | . . . . 1 . 1 5 . 3 . 1 . 1 . 1 . . . . . . . . . . . Utility 42 | 1 4 . 1 2 . 4 8 1 2 . . . 9 1 . . 1 2 . . . . . 1 3 2 Device 19 | . 2 . 1 2 . 2 4 . 1 . . . 3 1 . . . . . . . . . . 1 2 Storage 9 | 1 2 . . . . . . . 1 . . . 1 . . . 1 1 . . . . . . 2 . Processor 3 | . . . . . . . 2 . . . . . . . . . . . . . . . . 1 . . Hackware 2 | . . . . . . . 2 . . . . . . . . . . . . . . . . . . . Protection 9 | . . . . . . 2 . 1 . . . . 5 . . . . 1 . . . . . . . . Artifact . | . . . . . . . . . . . . . . . . . . . . . . . . . . . Weapon 29 | 2 2 . 4 5 . 2 . . 1 2 . 3 8 . . . . . . . . . . . . . Energy Gun 7 | . . . . . . . . . . 2 . . 5 . . . . . . . . . . . . . Energy Cannon 9 | . 2 . 3 4 . . . . . . . . . . . . . . . . . . . . . . Ballistic Gun 2 | 2 . . . . . . . . . . . . . . . . . . . . . . . . . . Ballistic Cannon . | . . . . . . . . . . . . . . . . . . . . . . . . . . . Launcher 2 | . . . 1 1 . . . . . . . . . . . . . . . . . . . . . . Special Weapon 8 | . . . . . . 2 . . . . . 3 3 . . . . . . . . . . . . . Impact Weapon . | . . . . . . . . . . . . . . . . . . . . . . . . . . . Slashing Weapon . | . . . . . . . . . . . . . . . . . . . . . . . . . . . Piercing Weapon 1 | . . . . . . . . . 1 . . . . . . . . . . . . . . . . . Special Melee Weapon . | . . . . . . . . . . . . . . . . . . . . . . . . . . . Unidentified Prototypes 22 | . 1 . 1 1 . 1 . . . . . 1 10 . 1 . . 4 . . . . . . 1 1 Parts Lost 59 | . . 1 . . . 1 2 . . . . . 20 . . 1 . . . . 1 . . . 4 29 Power 6 | . . . . . . 1 1 . . . . . 2 . . . . . . . . . . . . 2 Propulsion 22 | . . 1 . . . . . . . . . . 11 . . 1 . . . . . . . . 1 8 Utility 22 | . . . . . . . . . . . . . 4 . . . . . . . 1 . . . 2 15 Weapon 9 | . . . . . . . 1 . . . . . 3 . . . . . . . . . . . 1 4 Highest Loss Streak 24 | . . 1 . . . 1 1 . . . . . 5 . . 1 . . . . 1 . . . 1 24 To Critical Strikes 2 | . . . . . . . . . . . . . . . . . . . . . . . . . . 2 Average Backups 13 | . 19 24 24 24 25 24 13 12 8 7 6 6 7 7 8 9 9 8 9 9 9 9 9 9 12 13 Power 1 | . 1 3 2 2 2 1 1 1 . . . . . . 1 1 1 1 1 1 1 1 1 1 1 . Propulsion 3 | . 5 6 6 8 11 9 3 3 2 2 1 1 . . . . . . . . . . . . 2 3 Utility 6 | . 7 9 10 9 9 10 5 5 2 2 1 1 3 5 5 6 6 6 5 5 5 5 5 5 5 5 Weapon 2 | . 5 6 5 3 2 . 1 2 1 2 2 3 3 2 2 2 2 1 1 1 1 1 1 1 1 1 Tool/Special . | . . . . . . . . . . . . . . . . . . . . . . . . . . . Unused Backups 39 | . 1 . 11 2 . 4 3 1 1 . 1 1 7 . . . . . 1 . . . . . 1 5 Power 5 | . . . 3 . . 1 . . . . . . 1 . . . . . . . . . . . . . Propulsion 7 | . . . 1 1 . . 1 . . . . . 1 . . . . . . . . . . . 1 2 Utility 17 | . . . 3 1 . 3 2 1 1 . 1 . 2 . . . . . 1 . . . . . . 2 Weapon 8 | . 1 . 4 . . . . . . . . . 3 . . . . . . . . . . . . . Tool/Special 2 | . . . . . . . . . . . . 1 . . . . . . . . . . . . . 1 Average Slot Usage (%) 82 | . 99 99 99 99 100 93 82 81 84 89 96 93 50 67 86 86 84 72 88 88 89 88 89 89 89 85 Engine 3 | . 14 14 11 11 11 8 6 6 . . . . . . . . . . . . . . . . . . Core 1 | . . . . . . 1 4 6 10 13 13 13 5 . . . . . . . . . . . . . Reactor 2 | . . . . . . . . . . . . . 1 5 5 5 5 4 5 5 5 4 5 5 4 3 Treads 12 | . 28 27 43 43 44 41 2 . . . . . . . . . . . . . . . . . . . Leg 10 | . . . . . . . . . . . . . . 10 27 33 31 31 35 31 31 31 31 31 27 24 Hover 1 | . . . . . . . . . . . . . 4 13 4 . . . . . . . . . . . Flight 4 | . . . . . . 2 36 40 40 40 40 40 5 . 1 . . . . . . . . . . . Device 13 | . 13 14 10 10 11 7 10 3 12 13 13 13 4 9 16 17 17 16 17 20 21 21 21 21 27 27 Storage 9 | . 14 14 11 11 11 11 6 6 6 6 6 6 4 7 11 11 11 11 11 10 10 10 10 10 9 9 Processor 5 | . . . . . . . 10 13 13 13 13 13 13 8 5 5 5 5 5 5 5 5 5 5 4 4 Protection 1 | . . . . . . 2 . 4 . . . . 1 . . . . . . 4 5 4 5 5 4 7 Energy Cannon 10 | . 27 28 21 21 22 11 . . . . . . . 8 11 11 11 1 11 10 10 10 10 10 9 7 Special Weapon 1 | . . . . . . 5 1 . . . . . 3 . . . . . . . . . . . . . Peak Build Rating 198 | 6 16 16 22 23 23 35 58 51 63 64 68 70 90 101 129 123 123 134 135 153 153 153 153 157 178 198 Average Rating 74 | 4 14 15 20 22 23 25 48 42 53 58 62 62 42 87 124 121 120 107 134 152 152 152 153 155 176 183 On Entrance 82 | . 6 16 15 22 23 23 35 51 41 56 64 62 67 60 101 123 118 123 134 135 153 153 153 153 157 177 Avg Prop Armor Cover (%) 4 | . . . . . . 1 2 . . 2 . 2 6 6 6 . . . . . . 3 . . 10 5 Naked Turns . | . . . . . . . . . . . . . . . . . . . . . . . . . . . Heaviest Build 109 | 12 94 94 97 101 101 109 108 29 29 33 33 33 43 83 85 85 85 85 85 91 91 91 91 91 103 109 Greatest Support 196 | 40 40 40 83 83 83 83 63 29 30 30 31 31 84 60 140 135 135 170 170 170 170 170 170 175 196 184 Greatest Overweight (x) 10 | . 2 2 1 1 1 2 1 . . 1 1 1 10 1 1 . . . . . . . . . 1 1 Average Overweight (x) . | . 1 2 1 1 1 1 . . . . . . 2 1 . . . . . . . . . . . . Largest Inventory Capacity 25 | 8 25 25 25 25 25 25 25 15 15 10 10 10 10 10 10 10 10 10 10 10 10 10 10 10 15 15 Average Capacity 15 | 7 23 25 25 25 25 25 16 15 11 10 10 10 8 10 10 10 10 10 10 10 10 10 10 10 13 14 Most Carried 25 | . 25 25 25 25 25 25 25 15 15 10 10 10 10 10 10 10 10 10 10 10 10 10 10 10 15 15 Average Carried 14 | . 19 24 24 24 25 24 16 14 11 10 9 9 8 9 9 10 10 9 9 10 10 10 10 10 13 14 Final Capacity 25 | 8 25 25 25 25 25 25 15 15 10 10 10 10 10 10 10 10 10 10 10 10 10 10 10 10 15 5 Final Carried 25 | . 25 24 25 25 25 25 15 15 10 10 10 10 10 10 10 10 10 10 10 10 10 10 10 10 15 5 Class Distribution -------------------- 31% | Mutant 27% | Golem 14% | Commander-Mutant 6% | Skirmisher 5% | Commander-Golem 5% | Scavenger-Golem 4% | Scavenger-Mutant 3% | Scout Dominant Class ---------------- Mutant | -10/Materials Mutant | -10/Mines Mutant | -9/Materials Mutant | -9/Storage Commander-Mutant | -9/Recycling Commander-Mutant | -9/Scraptown Scout | -6/Factory Sprinter | -6/Waste Scout | -6/Factory Scout | -6/Lower Caves Scout | -6/Lower Caves Mutant | -6/Zion Mutant | -6/Deep Caves Golem | -5/Proximity Caves Golem | -5/Factory Scavenger-Golem | -5/Upper Caves Golem | -5/Upper Caves Golem | -5/Zhirov Golem | -4/Proximity Caves Golem | -4/Factory Golem | -4/Extension Commander-Golem | -4/Cetus Commander-Golem | -4/Archives Commander-Golem | -4/Hub_04(d) Golem | -3/Research Golem | -2/Research Resources | -11 -10 -10 -9 -9 -9 -9 -6 -6 -6 -6 -6 -6 -6 -5 -5 -5 -5 -5 -4 -4 -4 -4 -4 -4 -3 -2 ----------- Run | Yrd Mat Min Mat Sto Rec Scr Fac Was Fac Low Low Zio Dee Pro Fac Upp Upp Zhi Pro Fac Ext Cet Arc Hub Res Res Matter Collected 2602 | 188 132 10 200 356 43 156 180 . 70 66 63 37 502 97 119 32 27 . 88 9 10 . . 20 118 79 Remotely . | . . . . . . . . . . . . . . . . . . . . . . . . . . . Salvage Created 11343 | . 760 352 801 1714 487 58 . . . . . . 634 29 1366 295 . . 41 352 748 84 273 184 2099 1066 Parts 611 | . 27 19 60 115 16 . . . . . . . 25 4 57 16 . . . 11 35 8 10 13 128 67 Haulers Intercepted 12 | . 2 . 2 5 . . . . . . . . . . 2 . . . . 1 . . . . . . Recyclers Shooed 8 | . 1 . 1 1 3 . . . . . . . . . . . . . . . 1 . . . . 1 Parts Field Recycled . | . . . . . . . . . . . . . . . . . . . . . . . . . . . Retrieved Matter . | . . . . . . . . . . . . . . . . . . . . . . . . . . . Parts Self-Destructed 20 | . . . . . . . . . . . . . . 4 . 16 . . . . . . . . . . Prevented 2 | . . . . . . . . . . . . . . . . . 2 . . . . . . . . . Parts Restored . | . . . . . . . . . . . . . . . . . . . . . . . . . . . Kills | -11 -10 -10 -9 -9 -9 -9 -6 -6 -6 -6 -6 -6 -6 -5 -5 -5 -5 -5 -4 -4 -4 -4 -4 -4 -3 -2 ------- Run | Yrd Mat Min Mat Sto Rec Scr Fac Was Fac Low Low Zio Dee Pro Fac Upp Upp Zhi Pro Fac Ext Cet Arc Hub Res Res Combat Hostiles Destroyed 179 | . 10 7 20 28 1 1 . . . . . . 15 2 22 8 . . . 3 9 . 3 2 28 20 Melee 1 | . . . . . . . . . . . . . 1 . . . . . . . . . . . . . Guns 1 | . . . . . . . . . . . . . . 1 . . . . . . . . . . . . Cannons 153 | . 10 7 17 18 1 . . . . . . . 5 1 21 8 . . . 3 9 . 3 2 28 20 AOE 19 | . . . 3 10 . . . . . . . . 5 . 1 . . . . . . . . . . . Classes Destroyed 22 | . 6 3 1 3 . 1 . . . . . . 3 1 2 . . . . . . . . . 2 . Worker 10 | . . 2 1 5 . . . . . . . . . . 1 . . . . . 1 . . . . . Builder 6 | . . 1 . 3 . . . . . . . . . . . . . . . . . . . . 2 . Tunneler 2 | . . 1 . . . . . . . . . . . . 1 . . . . . . . . . . . Hauler 12 | . 2 . 2 5 . . . . . . . . . . 2 . . . . 1 . . . . . . Recycler 16 | . 3 . 2 3 6 . . . . . . . . . . . . . . . 1 . . . 1 . Mechanic 1 | . . . . 1 . . . . . . . . . . . . . . . . . . . . . . Operator 7 | . 2 . 2 2 . . . . . . . . . . . . . . . . . . . 1 . . Drone 2 | . . . . . . . . . . . . . . 2 . . . . . . . . . . . . Watcher 6 | . 1 . 1 1 . . . . . . . . . . 1 . . . . 1 . . . . 1 . Swarmer 42 | . 3 2 13 . . . . . . . . . . . 5 6 . . . . . . . . 5 8 Grunt 61 | . 7 5 3 19 . . . . . . . . . . 11 1 . . . 3 5 . . . 7 . Duelist 2 | . . . . 1 . . . . . . . . . . . . . . . . . . . . . 1 Protector 1 | . . . . 1 . . . . . . . . . . . . . . . . . . . . . . Sentry 24 | . . . 4 7 1 . . . . . . . . . 1 1 . . . . 2 . 3 1 3 1 Specialist 2 | . . . . . . . . . . . . . . . . . . . . . . . . . 2 . Hunter 8 | . . . . . . . . . . . . . . . 3 . . . . . . . . 1 2 2 Programmer 19 | . . . . . . . . . . . . . . . 2 . . . . . 1 . . . 8 8 Heavy 1 | . . . . . . . . . . . . . . . . . . . . . . . . . 1 . Explorer 1 | . . . . . . 1 . . . . . . . . . . . . . . . . . . . . Z-Technician 5 | . . . . . . . . . . . . . 5 . . . . . . . . . . . . . Z-Light 10 | . . . . . . . . . . . . . 10 . . . . . . . . . . . . . Decomposer 2 | . . . . . . . . . . . . . . . . . . . 2 . . . . . . . Assembled 2 | . . . . . . . . . . . . . 2 . . . . . . . . . . . . . Golem 2 | . . . . . . . . . . . . . 2 . . . . . . . . . . . . . Thug 2 | . . . . 1 . . . . . . . . . . . . . . . . 1 . . . . . Best Kill Streak 12 | . 3 3 6 12 5 1 . . . . . . 5 1 7 5 . . . 3 4 . 3 1 5 4 Combat Bots Only 8 | . 3 2 6 8 1 1 . . . . . . 5 1 7 5 . . . 3 3 . 3 1 5 4 Max Kills in Single Turn 4 | . 1 1 2 4 2 1 . . . . . . 2 1 2 1 . . 1 1 1 1 1 1 2 1 Gunslinging . | . . . . . . . . . . . . . . . . . . . . . . . . . . . Exploded 3 | . . . 2 3 . . . . . . . . 1 . 1 . . . . . . . . . . . Melee 1 | . . . . . . . . . . . . . 1 . . . . . . . . . . . . . Uniques/NPCs Destroyed 2 | . . . . . . . . . . . . . 1 . . . . . . . . 1 . . . . Z-Imprinter (-6/Deep Caves) A7 (-4/Cetus) Combat | -11 -10 -10 -9 -9 -9 -9 -6 -6 -6 -6 -6 -6 -6 -5 -5 -5 -5 -5 -4 -4 -4 -4 -4 -4 -3 -2 -------- Run | Yrd Mat Min Mat Sto Rec Scr Fac Was Fac Low Low Zio Dee Pro Fac Upp Upp Zhi Pro Fac Ext Cet Arc Hub Res Res Hostile Shots Fired 1262 | . 32 33 93 123 2 30 27 . 12 . . . 114 . 89 33 . . . 20 53 3 1 40 154 403 Missed 448 | . 7 14 26 33 . 7 17 . 9 . . . 32 . 26 15 . . . 2 17 2 . 19 61 161 Hits 814 | . 25 19 67 90 2 23 10 . 3 . . . 82 . 63 18 . . . 18 36 1 1 21 93 242 Melee 6 | . . . . 6 . . . . . . . . . . . . . . . . . . . . . . Projectile 808 | . 25 19 67 84 2 23 10 . 3 . . . 82 . 63 18 . . . 18 36 1 1 21 93 242 AOE 2 | . . . . . . . 1 . . . . . . . 1 . . . . . . . . . . . Critical Strikes 31 | . 1 . . 5 . . . . . . . . 2 . 1 . . . . 1 1 . 1 4 5 10 Part Disruptions 4 | . . . . . . . . . . . . . . . . . . . . . . 1 . . 1 2 Damage Taken 15742 | . 259 219 601 1383 30 316 244 . 21 . . . 2360 . 1214 291 . . . 288 731 72 77 468 1839 5329 Core 2434 | . 46 44 99 181 . 42 75 . 21 . . . 565 . 109 14 . . . . 101 . . 80 90 967 Absorbed by Shields 79 | . . . . . . . . . . . . . . . . . . . . . . 51 . . . 28 Redirected to Shielding 223 | . . . . . . . . . . . . . 86 . . . . . . . . . . . . 137 Ignored by Resistances 1277 | . . . . . . . . . . . . . . . . . . . . 63 151 26 16 97 381 543 Regen/Repaired (Parts) 44 | . . . . 44 . . . . . . . . . . . . . . . . . . . . . . Core Remaining (%) 67 | 100 . 64 . . . 19 . . . . . . . 22 . . . . 87 . . . . 84 93 . Volleys Fired 659 | . 38 25 63 89 5 2 . . . . 1 . 43 11 57 17 . . 25 11 57 21 6 23 91 74 Largest 2 | . 2 2 2 2 2 1 . . . . 1 . 2 2 2 2 . . 2 2 2 2 2 2 2 2 Hottest 150 | . 136 136 136 150 150 . . . . . . . 120 60 50 50 . . 50 50 50 50 50 50 50 50 Shots Fired 1141 | . 76 50 122 166 12 2 . . . . 1 . 48 21 101 31 . 1 51 22 86 41 12 36 158 104 Gun 21 | . . . . . . . . . . . . . 20 1 . . . . . . . . . . . . Cannon 1076 | . 76 50 120 155 12 . . . . . . . . 20 101 31 . 1 51 22 86 41 12 36 158 104 Launcher 13 | . . . 2 11 . . . . . . . . . . . . . . . . . . . . . . Special 31 | . . . . . . 2 . . . . 1 . 28 . . . . . . . . . . . . . Kinetic . | . . . . . . . . . . . . . . . . . . . . . . . . . . . Thermal 1083 | . 76 50 120 155 12 . . . . . . . 7 20 101 31 . 1 51 22 86 41 12 36 158 104 Explosive 29 | . . . 2 11 . . . . . . . . 16 . . . . . . . . . . . . . Electromagnetic 10 | . . . . . . . . . . . . . 10 . . . . . . . . . . . . . Impact 15 | . . . . . . 2 . . . . 1 . 12 . . . . . . . . . . . . . Phasic 4 | . . . . . . . . . . . . . 3 1 . . . . . . . . . . . . Robot Hit Streak 31 | . 15 14 7 8 4 4 . . . . . . 10 2 18 5 . . 3 11 11 9 9 12 31 18 Robot Miss Streak 5 | . 2 4 5 4 1 1 . . . . . . 3 1 2 2 . . 1 2 3 3 2 4 2 3 Penetration Max . | . . . . . . . . . . . . . . . . . . . . . . . . . . . Secondary Targets . | . . . . . . . . . . . . . . . . . . . . . . . . . . . Shots Hit Robots 623 | . 43 31 60 84 7 1 . . . . . . 34 2 63 12 . . 2 15 55 31 9 8 101 65 Core Hits 322 | . 20 14 28 63 6 . . . . . . . 27 1 32 6 . . . 7 23 9 5 4 46 31 Critical Kills . | . . . . . . . . . . . . . . . . . . . . . . . . . . . Critical Parts Destroyed . | . . . . . . . . . . . . . . . . . . . . . . . . . . . Critical Strikes 3 | . . . . . . . . . . . . . 3 . . . . . . . . . . . . . Sever 3 | . . . . . . . . . . . . . 3 . . . . . . . . . . . . . Melee Attacks 14 | . . . . . . . . . 2 . 1 3 8 . . . . . . . . . . . . . Thermal 14 | . . . . . . . . . 2 . 1 3 8 . . . . . . . . . . . . . Impact . | . . . . . . . . . . . . . . . . . . . . . . . . . . . Slashing . | . . . . . . . . . . . . . . . . . . . . . . . . . . . Piercing . | . . . . . . . . . . . . . . . . . . . . . . . . . . . Sneak Attacks 4 | . . . . . . . . . . . . . 4 . . . . . . . . . . . . . Combat Hostiles . | . . . . . . . . . . . . . . . . . . . . . . . . . . . Follow-up Attacks . | . . . . . . . . . . . . . . . . . . . . . . . . . . . Damage Inflicted 28840 | . 878 660 1390 3733 232 102 . . . . . . 3504 76 3360 577 . . 102 729 2657 1691 381 374 5140 3254 Guns 199 | . . . . . . . . . . . . . 166 33 . . . . . . . . . . . . Cannons 23294 | . 878 660 1249 2303 200 . . . . . . . . 43 3106 577 . . 102 729 2657 1691 381 374 5131 3213 Explosions 3265 | . . . 120 1426 . . . . . . . . 1465 . 254 . . . . . . . . . . . Melee 518 | . . . . . . . . . . . . . 518 . . . . . . . . . . . . . Ramming 107 | . . . 21 4 32 . . . . . . . . . . . . . . . . . . . 9 41 Kinetic . | . . . . . . . . . . . . . . . . . . . . . . . . . . . Thermal 24094 | . 878 660 1249 2303 200 . . . . . . . 546 43 3360 577 . . 102 729 2657 1691 381 374 5131 3213 Explosive 3011 | . . . 120 1426 . . . . . . . . 1465 . . . . . . . . . . . . . Electromagnetic 138 | . . . . . . . . . . . . . 138 . . . . . . . . . . . . . Impact 1035 | . . . . . . 102 . . . . . . 933 . . . . . . . . . . . . . Slashing 422 | . . . . . . . . . . . . . 422 . . . . . . . . . . . . . Piercing . | . . . . . . . . . . . . . . . . . . . . . . . . . . . Phasic 33 | . . . . . . . . . . . . . . 33 . . . . . . . . . . . . Highest Corruption 19 | . . . . 2 2 . 1 7 7 7 7 7 . . 1 1 1 1 1 . . . . 2 4 19 Average Corruption 2 | . . . . 2 2 . 1 7 7 7 7 7 . . 1 1 1 1 1 . . . . 2 2 4 Corruption Purged 1 | . . . . . . . 1 . . . . . . . . . . . . . . . . . . . Corruption Blocked . | . . . . . . . . . . . . . . . . . . . . . . . . . . . Effects 99 | . . . . 4 8 . . 1 6 11 5 . . . 1 15 4 9 4 . . . . . 18 13 Message Errors 14 | . . . . . 1 . . . 1 3 . . . . . 4 1 . 1 . . . . . 3 . Matter Fused 28 | . . . . 2 4 . . . 1 2 2 . . . 1 5 . 1 1 . . . . . 6 3 Heat Flow Errors 14 | . . . . . . . . . 1 2 2 . . . . 1 . 3 . . . . . . 3 2 Energy Discharges 17 | . . . . . 1 . . . 2 3 . . . . . 1 2 3 1 . . . . . 4 . Parts Rejected 1 | . . . . . . . . . . . . . . . . . . . . . . . . . . 1 Data Loss (minor) 6 | . . . . 2 . . . . . . 1 . . . . . . 1 . . . . . . 1 1 Data Loss (major) 5 | . . . . . . . . . 1 . . . . . . 1 1 . . . . . . . . 2 Misfires 7 | . . . . . 2 . . . . . . . . . . 2 . 1 1 . . . . . 1 . Alerts 3 | . . . . . . . . 1 . 1 . . . . . . . . . . . . . . . 1 Misdirections 1 | . . . . . . . . . . . . . . . . . . . . . . . . . . 1 Weapon Failures 3 | . . . . . . . . . . . . . . . . 1 . . . . . . . . . 2 Overload Shots . | . . . . . . . . . . . . . . . . . . . . . . . . . . . Overflow Damage 1490 | . 1 . 24 71 . 128 . . . . . . 501 13 139 79 . . 65 37 51 29 . . 184 168 Projectiles 1224 | . 1 . 18 54 . 128 . . . . . . 258 13 139 79 . . 65 37 51 29 . . 184 168 Explosions 84 | . . . . 17 . . . . . . . . 67 . . . . . . . . . . . . . Melee 182 | . . . 6 . . . . . . . . . 176 . . . . . . . . . . . . . Knockbacks 11 | . . . . . 2 2 . . . . . . 7 . . . . . . . . . . . . . Impact 9 | . . . . . 2 1 . . . . . . 6 . . . . . . . . . . . . . Kinetic . | . . . . . . . . . . . . . . . . . . . . . . . . . . . Secondary 2 | . . . . . . 1 . . . . . . 1 . . . . . . . . . . . . . Self-Inflicted Damage 178 | . . . . 126 . . . . . . . . . . 52 . . . . . . . . . . . Shots 5 | . . . . 4 . . . . . . . . . . 1 . . . . . . . . . . . Rammed 6 | . . . 1 1 4 . . . . . . . . . . . . . . . . . . . . . Targets Rammed 14 | . . . 1 1 5 . . . . . . . . . . . . . . . . . . . 1 6 Kicked 7 | . . . . . . . . . . . . . . . . . . . . . . . . . 1 6 Crushed 1 | . . . . . 1 . . . . . . . . . . . . . . . . . . . . . Highest Temperature 358 | . 193 199 244 275 75 . 216 70 304 297 222 358 275 . . 87 . 128 . . . . . . 121 73 Average Temperature 94 | . 95 100 99 98 28 . 60 34 125 105 97 129 81 . . 63 . 65 . . . . . . 75 48 Received Heat Transfer 2427 | . 96 102 36 507 9 84 12 . 6 . . . 622 . 180 27 . . . 90 111 4 . 21 133 387 Effects 7 | . . . . . . . . . 2 2 . . 3 . . . . . . . . . . . . . Interference 7 | . . . . . . . . . 2 2 . . 3 . . . . . . . . . . . . . Siege Activations . | . . . . . . . . . . . . . . . . . . . . . . . . . . . Martial Activations . | . . . . . . . . . . . . . . . . . . . . . . . . . . . Shielding Activations . | . . . . . . . . . . . . . . . . . . . . . . . . . . . Robots Disrupted . | . . . . . . . . . . . . . . . . . . . . . . . . . . . Combat Hostiles . | . . . . . . . . . . . . . . . . . . . . . . . . . . . Robots Corrupted 6 | . . . 1 . . 1 . . . . . . 4 . . . . . . . . . . . . . Combat Hostiles 5 | . . . . . . 1 . . . . . . 4 . . . . . . . . . . . . . Parts Fried 9 | . . . 2 . . . . . . . . . 7 . . . . . . . . . . . . . Impact Corruptions 9 | . . . 1 . . 2 . . . . . . 6 . . . . . . . . . . . . . Robots Melted . | . . . . . . . . . . . . . . . . . . . . . . . . . . . Combat Hostiles . | . . . . . . . . . . . . . . . . . . . . . . . . . . . Parts Melted 23 | . 1 3 4 4 . . . . . . . . 3 . . . . . . . . . . . 3 5 Heat Transferred 18788 | . 1591 1184 2257 3460 296 . . . . . . . 637 25 1850 300 . . 50 375 1475 613 225 225 2600 1625 Parts Sabotaged . | . . . . . . . . . . . . . . . . . . . . . . . . . . . Parts Stolen . | . . . . . . . . . . . . . . . . . . . . . . . . . . . Parts Stripped . | . . . . . . . . . . . . . . . . . . . . . . . . . . . Power Chain Reactions . | . . . . . . . . . . . . . . . . . . . . . . . . . . . Alert | -11 -10 -10 -9 -9 -9 -9 -6 -6 -6 -6 -6 -6 -6 -5 -5 -5 -5 -5 -4 -4 -4 -4 -4 -4 -3 -2 ------- Run | Yrd Mat Min Mat Sto Rec Scr Fac Was Fac Low Low Zio Dee Pro Fac Upp Upp Zhi Pro Fac Ext Cet Arc Hub Res Res Maximum Alert Level 3 | . . . 1 3 1 . . . . . . . . . 2 . . . . . 1 1 . 3 3 2 Low Security (%) 55 | 100 100 100 69 22 47 . 100 100 100 . . . . . 53 . . . . 100 59 59 100 73 . . Level 1 20 | . . . 30 26 52 . . . . . . . . . 31 . . . . . 40 40 . 11 7 59 Level 2 19 | . . . . 39 . . . . . . . . . . 15 . . . . . . . . 9 79 40 Level 3 3 | . . . . 10 . . . . . . . . . . . . . . . . . . . 6 13 . Level 4 . | . . . . . . . . . . . . . . . . . . . . . . . . . . . Level 5 . | . . . . . . . . . . . . . . . . . . . . . . . . . . . High Security . | . . . . . . . . . . . . . . . . . . . . . . . . . . . Max Security . | . . . . . . . . . . . . . . . . . . . . . . . . . . . Peak Influence 969 | . 91 59 345 792 307 . 137 25 37 . . . . . 502 . . . . 66 383 327 190 969 732 616 Initial 483 | . . 19 . 133 304 . . 25 . . . . . . . . . . . . 1 193 11 56 483 390 Average 211 | . 28 9 127 358 197 . 31 18 1 . . . . . 170 . . . . 14 147 176 140 198 561 392 Influence Increases 8133 | . 341 228 623 1238 91 . 266 . 80 . . . . 10 769 170 . . . 100 868 178 209 1320 876 766 Destroy 0b10 Robot/C 4140 | . 200 160 400 680 20 . 60 . 40 . . . . . 440 160 . . . 60 420 80 80 380 560 400 Destroy 0b10 Robot/NC 370 | . 40 20 40 115 30 . 5 . 5 . . . . 10 25 . . . . 10 20 5 . 25 20 . Destroy Leader 824 | . 56 30 106 164 . . 2 . 10 . . . . . 66 10 . . . 14 42 . . 112 122 90 Allied During Kill 1000 | . . 3 . 79 23 . 15 . 7 . . . . . . . . . . . 209 85 80 499 . . Successful Hack 32 | . . . 13 3 . . 4 . . . . . . . 8 . . . . 4 . . . . . . Select Force Hacks 50 | . . . . . . . . . . . . . . . . . . . . . . . . 50 . . Disable Machine 600 | . 30 . 45 90 15 . 15 . . . . . . . 60 . . . . . 135 . 45 90 75 . Destroy Structure 607 | . . . 4 92 3 . . . 3 . . . . . 170 . . . . 12 42 8 4 104 84 81 Partial Spotted 60 | . . . . 15 . . 45 . . . . . . . . . . . . . . . . . . . Lose Combat Pursuer 450 | . 15 15 15 . . . 120 . 15 . . . . . . . . . . . . . . 60 15 195 Influence Decreases 7683 | . 289 280 306 772 805 69 194 72 80 . . . . 10 271 654 14 . . 96 525 496 78 558 1103 1011 Entered New Map 2024 | . . 33 . 184 479 69 . 47 . . . . . . . 185 4 . . . 3 154 18 104 439 305 Time Decay 4706 | . 289 214 306 568 326 . 99 10 20 . . . . 10 271 459 10 . . 96 392 342 40 214 624 416 Lost Part 360 | . . 10 . . . . . . . . . . . . . 10 . . . . 10 . . . 40 290 Lost Ally 593 | . . 23 . 20 . . 95 15 60 . . . . . . . . . . . 120 . 20 240 . . Squads Dispatched 56 | . 3 . 2 7 . . 7 . 1 . . . . . 5 . . . . 2 1 . . 8 12 8 Investigation 15 | . 1 . 1 1 . . 5 . 1 . . . . . 2 . . . . 1 . . . 1 1 1 Extermination 11 | . . . . . . . 2 . . . . . . . 1 . . . . 1 . . . . 4 3 Reinforcement 17 | . 2 . 1 2 . . . . . . . . . . 1 . . . . . 1 . . 5 2 3 Assault 9 | . . . . 3 . . . . . . . . . . 1 . . . . . . . . 2 2 1 Garrison 4 | . . . . 1 . . . . . . . . . . . . . . . . . . . . 3 . Intercept . | . . . . . . . . . . . . . . . . . . . . . . . . . . . Searches Triggered . | . . . . . . . . . . . . . . . . . . . . . . . . . . . Construction Impeded 1 | . . . . . . . . . . . . . . . . . . . . . . . . 1 . . Haulers Reinforced 2 | . . . . . . . . . . . . . . . 1 . . . . . . . . 1 . . Active Scanning Responses . | . . . . . . . . . . . . . . . . . . . . . . . . . . . Cargo Convoy Interrupts . | . . . . . . . . . . . . . . . . . . . . . . . . . . . Stealth | -11 -10 -10 -9 -9 -9 -9 -6 -6 -6 -6 -6 -6 -6 -5 -5 -5 -5 -5 -4 -4 -4 -4 -4 -4 -3 -2 --------- Run | Yrd Mat Min Mat Sto Rec Scr Fac Was Fac Low Low Zio Dee Pro Fac Upp Upp Zhi Pro Fac Ext Cet Arc Hub Res Res Distress Signals 22 | . 3 . 4 2 . . 2 . . . . . . . 3 . . . . . 1 1 . 5 . 1 Communications Jammed . | . . . . . . . . . . . . . . . . . . . . . . . . . . . Distress Signals . | . . . . . . . . . . . . . . . . . . . . . . . . . . . Times Spotted 371 | . 19 9 36 45 1 5 14 3 3 . . . 33 1 27 8 . . . 4 26 5 4 37 30 61 Peak Tracking Total 30 | . 4 3 4 9 1 5 6 3 2 . . . 30 . 6 3 . . . 3 5 5 2 18 5 20 Tactical Retreats 20 | . 1 1 1 . . . 5 . 1 . . . 1 . . . . . . . . . . 3 1 6 Traps | -11 -10 -10 -9 -9 -9 -9 -6 -6 -6 -6 -6 -6 -6 -5 -5 -5 -5 -5 -4 -4 -4 -4 -4 -4 -3 -2 ------- Run | Yrd Mat Min Mat Sto Rec Scr Fac Was Fac Low Low Zio Dee Pro Fac Upp Upp Zhi Pro Fac Ext Cet Arc Hub Res Res Traps Triggered 12 | . 1 . 1 1 . . 3 . . . . . . . 1 . . . . 1 . . . . 2 2 Indirectly . | . . . . . . . . . . . . . . . . . . . . . . . . . . . Trap Hack Attempts . | . . . . . . . . . . . . . . . . . . . . . . . . . . . Triggered . | . . . . . . . . . . . . . . . . . . . . . . . . . . . Disarmed . | . . . . . . . . . . . . . . . . . . . . . . . . . . . Reprogrammed . | . . . . . . . . . . . . . . . . . . . . . . . . . . . Reused 1 | . . . . . . . . . . . . . 1 . . . . . . . . . . . . . Traps Extracted . | . . . . . . . . . . . . . . . . . . . . . . . . . . . Installed 1 | . . . . . . . . . . . . . 1 . . . . . . . . . . . . . Triggered . | . . . . . . . . . . . . . . . . . . . . . . . . . . . Most Traps Carried 1 | . . . . . . 1 1 1 1 1 1 1 1 . . . . . . . . . . . . . Machines | -11 -10 -10 -9 -9 -9 -9 -6 -6 -6 -6 -6 -6 -6 -5 -5 -5 -5 -5 -4 -4 -4 -4 -4 -4 -3 -2 ---------- Run | Yrd Mat Min Mat Sto Rec Scr Fac Was Fac Low Low Zio Dee Pro Fac Upp Upp Zhi Pro Fac Ext Cet Arc Hub Res Res Machines Disabled 47 | . 2 . 3 6 1 1 1 . . . . 3 1 . 4 . . . 1 . 9 1 3 6 5 . Max in Single Turn 2 | . 1 . 1 2 1 1 . . . . . 1 1 . 1 . . . 1 . 1 . 1 1 1 . Garrison Access 3 | . . . . 1 . . 1 . . . . . . . . . . . . . . . . 1 . . Network Hub 1 | . . . . . . . . . . . . . . . . . . . . . . . . 1 . . Machines Repaired . | . . . . . . . . . . . . . . . . . . . . . . . . . . . Machines Dismantled 1 | . . . . . . 1 . . . . . . . . . . . . . . . . . . . . Machines Sabotaged 1 | . . . . . . . . . . . . . . . . . . . . . . . . 1 . . Overloaded Fab Kills . | . . . . . . . . . . . . . . . . . . . . . . . . . . . Hacking | -11 -10 -10 -9 -9 -9 -9 -6 -6 -6 -6 -6 -6 -6 -5 -5 -5 -5 -5 -4 -4 -4 -4 -4 -4 -3 -2 --------- Run | Yrd Mat Min Mat Sto Rec Scr Fac Was Fac Low Low Zio Dee Pro Fac Upp Upp Zhi Pro Fac Ext Cet Arc Hub Res Res Machines Accessed 47 | . . . 4 4 . 2 9 . 4 1 . . . . 2 . . 4 1 2 2 . . 2 6 4 Terminals 22 | . . . 4 2 . . 2 . 1 . . . . . 2 . . . . 1 2 . . 2 3 3 Fabricators . | . . . . . . . . . . . . . . . . . . . . . . . . . . . Repair Stations 4 | . . . . 1 . . 2 . 1 . . . . . . . . . . . . . . . . . Recycling Units 7 | . . . . . . . 4 . 1 . . . . . . . . . . 1 . . . . 1 . Scanalyzers . | . . . . . . . . . . . . . . . . . . . . . . . . . . . Garrison Access 6 | . . . . 1 . . 1 . 1 . . . . . . . . . . . . . . . 2 1 Total Hacks 87 | . . . 9 8 . 2 15 . 4 1 . . . . 4 . . 17 1 2 2 . . 4 7 11 Successful 40 | . . . 2 4 . 2 6 . 1 1 . . . . 1 . . 17 1 2 . . . 1 2 . Failed 47 | . . . 7 4 . . 9 . 3 . . . . . 3 . . . . . 2 . . 3 5 11 Catastrophic 18 | . . . 3 3 . . 3 . 2 . . . . . 1 . . . . . 1 . . . 3 2 Database Lockouts . | . . . . . . . . . . . . . . . . . . . . . . . . . . . Manual 33 | . . . 3 3 . . 9 . 2 . . . . . 2 . . . . 1 . 1 . 3 2 7 Terminals 44 | . . . 9 4 . . 5 . 1 . . . . . 4 . . . . 1 2 . . 4 4 10 Fabricators . | . . . . . . . . . . . . . . . . . . . . . . . . . . . Repair Stations 7 | . . . . 2 . . 4 . 1 . . . . . . . . . . . . . . . . . Recycling Units 8 | . . . . . . . 5 . 1 . . . . . . . . . . 1 . . . . 1 . Scanalyzers . | . . . . . . . . . . . . . . . . . . . . . . . . . . . Garrison Access 7 | . . . . 2 . . 1 . 1 . . . . . . . . . . . . . . . 2 1 Terminal Hacks 27 | . . . 2 1 . 2 . . . 1 . . . . 1 . . 17 1 1 . . . . 1 . Record 7 | . . . . . . 1 . . . . . . . . . . . 5 1 . . . . . . . Part Schematic 4 | . . . . . . . . . . . . . . . . . . 4 . . . . . . . . Robot Analysis 5 | . . . 1 . . . . . . . . . . . . . . 4 . . . . . . . . Prototype ID Bank 4 | . . . . . . . . . . . . . . . . . . 4 . . . . . . . . Open Door 2 | . . . . . . . . . . 1 . . . . . . . . . 1 . . . . . . Branch Access Points 2 | . . . 1 . . . . . . . . . . . 1 . . . . . . . . . . . Emergency Access Points 1 | . . . . . . . . . . . . . . . . . . . . . . . . . 1 . Recall Reinforcements 1 | . . . . 1 . . . . . . . . . . . . . . . . . . . . . . Proto ID Catalog 1 | . . . . . . 1 . . . . . . . . . . . . . . . . . . . . Fabricator Hacks . | . . . . . . . . . . . . . . . . . . . . . . . . . . . Repair Station Hacks 3 | . . . . 2 . . 1 . . . . . . . . . . . . . . . . . . . Scan Component 1 | . . . . 1 . . . . . . . . . . . . . . . . . . . . . . Repair 1 | . . . . 1 . . . . . . . . . . . . . . . . . . . . . . Refit 1 | . . . . . . . 1 . . . . . . . . . . . . . . . . . . . Recycling Unit Hacks . | . . . . . . . . . . . . . . . . . . . . . . . . . . . Scanalyzer . | . . . . . . . . . . . . . . . . . . . . . . . . . . . Garrison Access Hacks 2 | . . . . 1 . . 1 . . . . . . . . . . . . . . . . . . . Seal Access 2 | . . . . 1 . . 1 . . . . . . . . . . . . . . . . . . . Unauthorized Hacks 8 | . . . . . . . 4 . 1 . . . . . . . . . . 1 . . . 1 1 . Terminals 1 | . . . . . . . . . . . . . . . . . . . . . . . . 1 . . Sabotage 1 | . . . . . . . . . . . . . . . . . . . . . . . . 1 . . Fabricators . | . . . . . . . . . . . . . . . . . . . . . . . . . . . Repair Stations . | . . . . . . . . . . . . . . . . . . . . . . . . . . . Recycling Units 7 | . . . . . . . 4 . 1 . . . . . . . . . . 1 . . . . 1 . Fedlink 5 | . . . . . . . 3 . . . . . . . . . . . . 1 . . . . 1 . Scrapoids 2 | . . . . . . . 1 . 1 . . . . . . . . . . . . . . . . . Scanalyzers . | . . . . . . . . . . . . . . . . . . . . . . . . . . . Garrison Access . | . . . . . . . . . . . . . . . . . . . . . . . . . . . Data Cores Recovered 2 | . . . 1 . . . . . . . . . . . . . . . . . . . . 1 . . Used 1 | . . . . . . . . . . . . . . . . . . . . . . . . 1 . . Hacking Detections 27 | . . . 4 3 . . 5 . 3 . . . . . 2 . . . . . 2 . . 1 4 3 Full Trace Events 4 | . . . 1 1 . . 1 . . . . . . . 1 . . . . . . . . . . . Feedback Events 1 | . . . . . . . . . . . . . . . 1 . . . . . . . . . . . Corruption 1 | . . . . . . . . . . . . . . . 1 . . . . . . . . . . . Feedback Blocked . | . . . . . . . . . . . . . . . . . . . . . . . . . . . Robot Schematics Acquired 3 | . . . . . . . . . . . . 3 . . . . . . . . . . . . . . Robots Built . | . . . . . . . . . . . . . . . . . . . . . . . . . . . Authchips . | . . . . . . . . . . . . . . . . . . . . . . . . . . . Time . | . . . . . . . . . . . . . . . . . . . . . . . . . . . Total Robot Build Rating . | . . . . . . . . . . . . . . . . . . . . . . . . . . . Part Schematics Acquired 17 | . . . . . . . . . . . . 13 . . . . . 4 . . . . . . . . Parts Built . | . . . . . . . . . . . . . . . . . . . . . . . . . . . Authchips . | . . . . . . . . . . . . . . . . . . . . . . . . . . . Time . | . . . . . . . . . . . . . . . . . . . . . . . . . . . Total Part Build Rating . | . . . . . . . . . . . . . . . . . . . . . . . . . . . Part Studies Acquired . | . . . . . . . . . . . . . . . . . . . . . . . . . . . Parts Repaired 1 | . . . . 1 . . . . . . . . . . . . . . . . . . . . . . Time 32 | . . . . 32 . . . . . . . . . . . . . . . . . . . . . . Parts Recycled . | . . . . . . . . . . . . . . . . . . . . . . . . . . . Recycled Matter . | . . . . . . . . . . . . . . . . . . . . . . . . . . . Retrieved Matter . | . . . . . . . . . . . . . . . . . . . . . . . . . . . Retrieved Components . | . . . . . . . . . . . . . . . . . . . . . . . . . . . Parts Scanalyzed . | . . . . . . . . . . . . . . . . . . . . . . . . . . . Part Schematics Acquired . | . . . . . . . . . . . . . . . . . . . . . . . . . . . Parts Damaged . | . . . . . . . . . . . . . . . . . . . . . . . . . . . Bothacking | -11 -10 -10 -9 -9 -9 -9 -6 -6 -6 -6 -6 -6 -6 -5 -5 -5 -5 -5 -4 -4 -4 -4 -4 -4 -3 -2 ------------ Run | Yrd Mat Min Mat Sto Rec Scr Fac Was Fac Low Low Zio Dee Pro Fac Upp Upp Zhi Pro Fac Ext Cet Arc Hub Res Res Used RIF Installer . | . . . . . . . . . . . . . . . . . . . . . . . . . . . Robots Hacked . | . . . . . . . . . . . . . . . . . . . . . . . . . . . Non-combat . | . . . . . . . . . . . . . . . . . . . . . . . . . . . Combat . | . . . . . . . . . . . . . . . . . . . . . . . . . . . Robot Hacks Applied . | . . . . . . . . . . . . . . . . . . . . . . . . . . . Relay Couplers Released 2 | . . . . . . . . . . . . . . . . . . . . . . . . 2 . . Machine Destruction 2 | . . . . . . . . . . . . . . . . . . . . . . . . 2 . . Fabnet Peak Effective % . | . . . . . . . . . . . . . . . . . . . . . . . . . . . Robots Rewired 13 | . . . . . . . . . . . . . . . . . . . . . 13 . . . . . Allies Hacked 2 | . . . . . . . . . . . . . . . . . . . . . 2 . . . . . Hacks Repelled . | . . . . . . . . . . . . . . . . . . . . . . . . . . . Allies | -11 -10 -10 -9 -9 -9 -9 -6 -6 -6 -6 -6 -6 -6 -5 -5 -5 -5 -5 -4 -4 -4 -4 -4 -4 -3 -2 -------- Run | Yrd Mat Min Mat Sto Rec Scr Fac Was Fac Low Low Zio Dee Pro Fac Upp Upp Zhi Pro Fac Ext Cet Arc Hub Res Res Total Allies 54 | . . 2 . 12 . . 5 1 5 . . . . . . . . . . . 24 5 . . . . Largest Group 18 | . . 2 . 11 10 10 7 1 5 . . . . . . . . . . . 14 18 17 16 . . Highest-Rated Group 1162 | . . 45 . 119 111 111 146 28 143 . . . . . . . . . . . 740 1162 1003 951 . . Highest-Rated Ally 159 | . . 31 . 31 31 31 31 28 31 . . . . . . . . . . . 159 159 96 96 . . Total Orders 2 | . . . . . . 2 . . . . . . . . . . . . . . . . . . . . STAY 1 | . . . . . . 1 . . . . . . . . . . . . . . . . . . . . FOLLOW 1 | . . . . . . 1 . . . . . . . . . . . . . . . . . . . . Ally Attacks 417 | . . 7 . 62 . 30 32 6 14 . . . . . . . . . . . 77 46 20 123 . . Total Damage 9992 | . . 151 . 703 . 267 408 133 188 . . . . . . . . . . . 2358 1223 537 4024 . . Kills 68 | . . 1 . 9 . 6 4 . 3 . . . . . . . . . . . 14 6 1 24 . . Allies Corrupted 2 | . . . . . . . 1 . . . . . . . . . . . . . . . . 1 . . Allies Melted 5 | . . . . . . 5 . . . . . . . . . . . . . . . . . . . . Intel | -11 -10 -10 -9 -9 -9 -9 -6 -6 -6 -6 -6 -6 -6 -5 -5 -5 -5 -5 -4 -4 -4 -4 -4 -4 -3 -2 ------- Run | Yrd Mat Min Mat Sto Rec Scr Fac Was Fac Low Low Zio Dee Pro Fac Upp Upp Zhi Pro Fac Ext Cet Arc Hub Res Res Active Infowar (turns) 16367 | . . . . . . 582 524 6 228 248 201 950 1949 1077 1239 1234 568 713 1176 397 1094 774 89 443 1987 888 Sensors 15607 | . . . . . . . 429 6 220 248 201 950 1874 1077 1239 1234 568 713 1176 397 1094 774 89 443 1987 888 Terrain 4265 | . . . . . . . 524 3 227 228 201 950 1893 239 . . . . . . . . . . . . Structural 582 | . . . . . . 582 . . . . . . . . . . . . . . . . . . . . Robot Analysis Total 5 | . . . 1 . . . . . . . . . . . . . . 4 . . . . . . . . Derelict Logs Recovered 8 | . . 2 . . . . . . . 1 . 2 . 1 . 1 . . 1 . . . . . . . Drone Launches . | . . . . . . . . . . . . . . . . . . . . . . . . . . . Drone Recoveries . | . . . . . . . . . . . . . . . . . . . . . . . . . . . Exploration | -11 -10 -10 -9 -9 -9 -9 -6 -6 -6 -6 -6 -6 -6 -5 -5 -5 -5 -5 -4 -4 -4 -4 -4 -4 -3 -2 ------------- Run | Yrd Mat Min Mat Sto Rec Scr Fac Was Fac Low Low Zio Dee Pro Fac Upp Upp Zhi Pro Fac Ext Cet Arc Hub Res Res Turns Passed 32153 | 56 1419 1887 1323 1712 723 3688 594 28 228 248 201 950 6227 1991 1239 1234 568 734 1176 397 1094 774 89 443 2121 1009 Spaces Moved 14622 | 33 398 560 413 521 286 1394 997 59 380 281 185 912 2619 473 679 348 404 157 629 243 483 138 39 259 1085 647 Core 918 | 4 . . . . . . . . . . . . 854 . . . . . . . . . . . . 60 Treads 3623 | 29 398 560 413 521 286 1394 22 . . . . . . . . . . . . . . . . . . . Legs 5546 | . . . . . . . . . . . . . 53 442 679 348 404 157 629 243 483 138 39 259 1085 587 Wheels . | . . . . . . . . . . . . . . . . . . . . . . . . . . . Hover 1253 | . . . . . . . . . . . . . 1222 31 . . . . . . . . . . . . Flight 3282 | . . . . . . . 975 59 380 281 185 912 490 . . . . . . . . . . . . . Fastest Speed 22 | 50 160 320 240 240 240 240 22 22 22 23 22 23 23 126 130 130 130 120 130 130 130 126 126 130 116 50 Average Speed 155 | 146 293 320 240 240 240 240 27 22 22 35 52 94 172 176 147 130 130 126 130 130 130 129 126 130 128 115 Slowest Speed 550 | 160 320 320 240 240 240 320 240 22 23 99 99 104 550 180 183 132 132 135 130 130 130 132 130 130 180 180 Overloaded Moves . | . . . . . . . . . . . . . . . . . . . . . . . . . . . Propulsion Burnouts . | . . . . . . . . . . . . . . . . . . . . . . . . . . . Robots Hopped 28 | . . . . . . . 12 . 13 3 . . . . . . . . . . . . . . . . Potential Cave-ins 2 | . . . . . . . . . . . . . . . . . . . 2 . . . . . . . Cave-ins Triggered . | . . . . . . . . . . . . . . . . . . . . . . . . . . . Teleports 1 | . . . . . . . . . . . . . . . . . . . . . . . . . . 1 Exploration Rate (%) 52 | 3 78 98 41 93 67 85 31 60 7 41 41 79 89 56 21 57 59 60 70 7 72 48 61 39 29 18 Regions Visited 26 Branch Regions 17 Pre-discovered Areas 6 | . . 2 . . . . 1 . . . . . . . . . . 3 . . . . . . . . Known Exits Taken 18 | . . . 1 . . . . . 1 1 1 1 1 1 1 1 1 1 1 1 1 1 1 1 1 . Unknown Exits Taken 6 | 1 1 1 . 1 1 1 . . . . . . . . . . . . . . . . . . . . Scrap Searched 21 | . . 3 . . . 5 . . . 1 3 2 . 1 . 1 2 . 3 . . . . . . . Spaces Dug 162 | . . . . 10 . . . . 2 . 2 . 22 10 31 8 . . 34 . 2 . . 16 16 9 Terrain Destroyed 490 | . . . . 106 3 1 . . 2 . 2 . 82 19 81 19 . 1 47 7 12 4 2 26 43 33 Melee 6 | . . . . . . . . . 2 . 1 . 3 . . . . . . . . . . . . . Projectile 294 | . . . . 41 3 1 . . . . 1 . 7 19 28 19 . 1 47 7 12 4 2 26 43 33 AOE 190 | . . . . 65 . . . . . . . . 72 . 53 . . . . . . . . . . . Terrain Rammed . | . . . . . . . . . . . . . . . . . . . . . . . . . . . Walls Destroyed . | . . . . . . . . . . . . . . . . . . . . . . . . . . . Machines Disabled . | . . . . . . . . . . . . . . . . . . . . . . . . . . . Actions | -11 -10 -10 -9 -9 -9 -9 -6 -6 -6 -6 -6 -6 -6 -5 -5 -5 -5 -5 -4 -4 -4 -4 -4 -4 -3 -2 --------- Run | Yrd Mat Min Mat Sto Rec Scr Fac Was Fac Low Low Zio Dee Pro Fac Upp Upp Zhi Pro Fac Ext Cet Arc Hub Res Res Total 22926 | 38 577 607 636 817 307 1737 1306 73 508 426 288 1000 4279 1614 816 1100 443 695 938 302 865 694 66 329 1659 806 Wait 6906 | . 103 22 100 160 10 290 263 11 118 147 89 67 1408 1108 62 728 37 517 283 49 236 531 22 43 444 58 Move 14542 | 32 397 559 412 520 285 1393 974 58 353 274 184 911 2618 472 678 347 403 156 628 242 482 137 38 258 1084 647 Hop 27 | . . . . . . . 11 . 13 3 . . . . . . . . . . . . . . . . Pick Up 163 | . 26 . 18 10 . 12 8 1 7 . 2 4 60 5 2 . . 1 1 . . . . . 6 . Fast Attach 89 | 6 3 . 2 1 . 6 2 . 1 2 1 4 38 1 6 . 1 8 . . . . . . 6 1 Attach 67 | . . 1 3 4 . 5 13 . 3 . 3 3 23 2 1 . . . . . . . . . . 6 Detach 28 | . 2 . . . . 1 1 . 2 . 2 2 9 . . . . . . . 1 1 . . 5 2 Swap 66 | . 3 . 13 18 1 4 4 1 5 . 1 . 1 2 2 . 1 . . . 1 . . 2 3 4 Drop 245 | . 5 . 24 14 1 21 14 2 4 . 4 6 70 13 8 8 1 13 1 . 4 4 . 1 19 8 Fire 659 | . 38 25 63 89 5 2 . . . . 1 . 43 11 57 17 . . 25 11 57 21 6 23 91 74 Melee 14 | . . . . . . . . . 2 . 1 3 8 . . . . . . . . . . . . . Ram . | . . . . . . . . . . . . . . . . . . . . . . . . . . . Kick 7 | . . . . . . . . . . . . . . . . . . . . . . . . . 1 6 Crush 7 | . . . 1 1 5 . . . . . . . . . . . . . . . . . . . . . Escape Stasis 15 | . . . . . . . 15 . . . . . . . . . . . . . . . . . . . Rewire 86 | . . . . . . . . . . . . . . . . . . . . . 84 . . 2 . . Trap 1 | . . . . . . . . . . . . . 1 . . . . . . . . . . . . . Miscellaneous 4 | . . . . . . 3 1 . . . . . . . . . . . . . . . . . . . Route ------- -11/Scrapyard -10/Materials (discovered 3 exits: *Mat x2 / [*Min]) -10/Mines (discovered 3 exits: *Mat x2 / [*Sub]) -9/Materials (discovered 4 exits: *Mat x2 / Min / *Sto) -9/Storage (discovered 2 exits: *Mat / [*Rec]) -9/Recycling (discovered 2 exits: [*Fac] / *Scr) -9/Scraptown (discovered 2 exits: *Fac x2) -6/Factory -6/Waste -6/Factory (discovered 2 exits: *Fac / *Low) -6/Lower Caves -6/Lower Caves (discovered 2 exits: Fac / *Zio) -6/Zion (discovered 2 exits: *Dee / [Pro]) -6/Deep Caves -5/Proximity Caves -5/Factory (discovered 3 exits: *Fac / *Upp x2) -5/Upper Caves -5/Upper Caves (discovered 2 exits: *Fac / *Zhi) -5/Zhirov -4/Proximity Caves -4/Factory -4/Extension (discovered 2 exits: *Res / *Cet) -4/Cetus -4/Archives -4/Hub_04(d) -3/Research -2/Research History --------- Turn | Location | Event 3 | -11/Scrapyard | Discovered new exit (range 15) 57 | -11/Scrapyard | Entered Materials 307 | -10/Materials | Build established: Mutant 781 | -10/Materials | Discovered new exit (range 4) 1160 | -10/Materials | Discovered new exit (range 16) 1440 | -10/Materials | Discovered new exit (range 12) 1476 | -10/Materials | Entered Mines 1645 | -10/Mines | Discovered new exit (range 10) 1785 | -10/Mines | Learned location of Zion (-6) 1936 | -10/Mines | Discovered new exit (range 6) 2017 | -10/Mines | Learned location of Storage (-9) 2195 | -10/Mines | Learned location of 1 exit from Materials 2880 | -10/Mines | Discovered new exit (range 10) 3363 | -10/Mines | Entered Materials 3363 | -9/Materials | Evolved 2 slots: Propulsion x2 3364 | -9/Materials | Identified exit to Materials 4279 | -9/Materials | Discovered exit to Materials (range 13) 4393 | -9/Materials | Identified exit to Mines 4393 | -9/Materials | Identified exit to Storage 4686 | -9/Materials | Entered Storage 4742 | -9/Storage | Repaired Disposable Heat Sink 5120 | -9/Storage | Destroyed 8 combat bots 5359 | -9/Storage | Garrison activated, responded to threat 5397 | -9/Storage | Core integrity fell below 50% 5588 | -9/Storage | Met a pair of Derelict thieves 5872 | -9/Storage | Build established: Scavenger-Mutant 6090 | -9/Storage | Discovered exit to Materials (range 15) 6181 | -9/Storage | Destroyed 8 combat bots 6228 | -9/Storage | Assisted by bots powering up and referring to "LRC-V3" 6286 | -9/Storage | First assault squad dispatched 6350 | -9/Storage | Used back door to open Recycling access 6350 | -9/Storage | Discovered new exit (range 3) 6398 | -9/Storage | Entered Recycling 6398 | -9/Recycling | Accompanied by 10 allies 6527 | -9/Recycling | Build established: Commander-Mutant 6678 | -9/Recycling | Discovered new exit (range 13) 7054 | -9/Recycling | Scanned before Scraplab entrance 7088 | -9/Recycling | Entered Scraplab 7107 | -9/Recycling | Discovered new exit (range 2) 7121 | -9/Recycling | Entered Scraptown 7121 | -9/Scraptown | Accompanied by 10 allies 7121 | -9/Scraptown | System corruption cleaned by C-Scrubber 7548 | -9/Scraptown | Discovered new exit (range 11) 7713 | -9/Scraptown | Visited Red Mages 7800 | -9/Scraptown | Visited Symbiants 7821 | -9/Scraptown | Visited Observation Area 8150 | -9/Scraptown | Visited Comm Corps 8298 | -9/Scraptown | Visited TADAMA 8337 | -9/Scraptown | Visited CPS Storage 8395 | -9/Scraptown | Visited UFD Registry 8395 | -9/Scraptown | Registered with UFD as "Plasmahead" 8498 | -9/Scraptown | Visited DA-N13 Charitable Foundation 8520 | -9/Scraptown | Found DCF Scrap (28 items) 8570 | -9/Scraptown | Visited Science Guys 8656 | -9/Scraptown | Visited Scrap Suit Storage 8704 | -9/Scraptown | Visited Junk Repository 8820 | -9/Scraptown | Visited Infowarlord's Domain 8848 | -9/Scraptown | Visited Research Penetration Think Tank 8901 | -9/Scraptown | Visited LU-1G1's Boring Crew 8940 | -9/Scraptown | Visited Junk Cannon Lab 8984 | -9/Scraptown | Found Prototype Special Weapon 8984 | -9/Scraptown | Identified Junk Cannon 9515 | -9/Scraptown | Discovered new exit (range 5) 9809 | -9/Scraptown | Visited Scrapoid Pod Storage 9821 | -9/Scraptown | Found Scrapoid Pod 10132 | -9/Scraptown | Found Exp. Terrain Scanner 10210 | -9/Scraptown | Met Optimus 10210 | -9/Scraptown | Accepted into 0bPrime 10610 | -9/Scraptown | Civil war broke out across Scraptown 10630 | -9/Scraptown | Found Thermal Lance 10684 | -9/Scraptown | Lost 3 allies 10785 | -9/Scraptown | Lost 4 allies 10794 | -9/Scraptown | Core integrity fell below 20% 10809 | -9/Scraptown | Entered Factory 10809 | -6/Factory | Accompanied by 7 allies 10809 | -6/Factory | Evolved 6 slots: Power x1, Propulsion x2, Utility x3 10970 | -6/Factory | Discovered new exit (range 26) 11046 | -6/Factory | Lost 5 allies 11089 | -6/Factory | Identified exit to Factory 11130 | -6/Factory | Loaded intel: 8 recycling unit locations 11135 | -6/Factory | Learned location of Protoforge (-2) 11170 | -6/Factory | Build established: Scout 11206 | -6/Factory | Spotted B-75 Beast 11264 | -6/Factory | Scrapoid reinforcements arrived 11403 | -6/Factory | Manually triggered Chute Trap 11403 | -6/Factory | Sucked down chute 11403 | -6/Factory | Entered Waste 11403 | -6/Waste | Met up with 1 ally sucked down the chute earlier 11405 | -6/Waste | Spotted C-40 Crusher 11410 | -6/Waste | Spotted C-40 Crusher 11412 | -6/Waste | Spotted C-40 Crusher 11413 | -6/Waste | Spotted C-40 Crusher 11416 | -6/Waste | Discovered new exit (range 15) 11418 | -6/Waste | EMP discharged 11418 | -6/Waste | Spotted C-40 Crusher 11420 | -6/Waste | Identified exit to Factory 11431 | -6/Waste | Entered Factory 11562 | -6/Factory | Discovered exit to Factory (range 10) 11565 | -6/Factory | Discovered new exit (range 10) 11574 | -6/Factory | Identified exit to Lower Caves 11622 | -6/Factory | Scrapoid reinforcements arrived 11659 | -6/Factory | Entered Lower Caves 11685 | -6/Lower Caves | Lost 4 allies 11756 | -6/Lower Caves | Learned 8 Factory zone layouts 11886 | -6/Lower Caves | Discovered new exit (range 10) 11892 | -6/Lower Caves | Identified exit to Lower Caves 11907 | -6/Lower Caves | Entered another Lower Caves area 11908 | -6/Lower Caves | Encountered a Warlord checkpoint 11911 | -6/Lower Caves | Discovered exit to Factory (range 12) 12037 | -6/Lower Caves | Discovered new exit (range 14) 12108 | -6/Lower Caves | Identified exit to Zion 12108 | -6/Lower Caves | Entered Zion 12119 | -6/Zion | System corruption cleaned by Quarantine Array 12135 | -6/Zion | Discovered new exit (range 28) 12259 | -6/Zion | Learned Factory stockpile data 12364 | -6/Zion | Given the Hacking Drone Bay 12453 | -6/Zion | Build established: Mutant 12808 | -6/Zion | Found Prototype Special Weapon 12808 | -6/Zion | Identified RU-N14's Throwing Claymores 12838 | -6/Zion | Discovered new exit (range 25) 12988 | -6/Zion | Found RU-N14's Throwing Claymores 12991 | -6/Zion | Found RU-N14's Throwing Claymores 12993 | -6/Zion | Found RU-N14's Throwing Claymores 13055 | -6/Zion | Saw the warning signs outside the Deep Caves entrance 13057 | -6/Zion | Identified exit to Deep Caves 13058 | -6/Zion | Entered Deep Caves 13215 | -6/Deep Caves | Build established: Skirmisher 13673 | -6/Deep Caves | Attacked by Z-Imprinter 13686 | -6/Deep Caves | Destroyed Z-Imprinter 13714 | -6/Deep Caves | Lost 5 parts (1p4n) 13765 | -6/Deep Caves | Found Prototype Protection 13765 | -6/Deep Caves | Identified Zio. Weapon Casing 14112 | -6/Deep Caves | Lost 3 parts (2n1u) 14175 | -6/Deep Caves | Build established: Mutant 15495 | -6/Deep Caves | Discovered new exit (range 6) 15515 | -6/Deep Caves | Identified exit to Proximity Caves 17135 | -6/Deep Caves | Build established: Skirmisher 17482 | -6/Deep Caves | Found Zio. Weapon Casing 18197 | -6/Deep Caves | Core integrity fell below 50% 18198 | -6/Deep Caves | Z-Facility disabled 18232 | -6/Deep Caves | Lost 5 parts (1p2u2w) 18495 | -6/Deep Caves | Found Prototype Protection 18495 | -6/Deep Caves | Identified Zio. Heavy Carapace 18533 | -6/Deep Caves | Build established: Scavenger-Mutant 18644 | -6/Deep Caves | Found Zio. Weapon Casing 18945 | -6/Deep Caves | Spotted AG-12065 18990 | -6/Deep Caves | Destroyed AG-12065 19014 | -6/Deep Caves | Spotted AG-29120 19054 | -6/Deep Caves | Destroyed AG-29120 19080 | -6/Deep Caves | Lost 4 parts (3n1u) 19236 | -6/Deep Caves | Exposed GOLEM chamber 19237 | -6/Deep Caves | Triggered Deep Caves wall 19243 | -6/Deep Caves | Found GOLEM Unit 19251 | -6/Deep Caves | Found GOLEM Unit 19285 | -6/Deep Caves | Entered Proximity Caves 19936 | -5/Proximity Caves | Build established: Golem 21264 | -5/Proximity Caves | Discovered exit to Factory (range 8) 21276 | -5/Proximity Caves | Entered Factory 21276 | -5/Factory | Evolved 2 slots: Utility x2 21967 | -5/Factory | Destroyed 7 combat bots 22034 | -5/Factory | Identified exit to Upper Caves 22416 | -5/Factory | Discovered new exit (range 9) 22427 | -5/Factory | Identified exit to Factory 22476 | -5/Factory | First assault squad dispatched 22515 | -5/Factory | Entered Upper Caves 22551 | -5/Upper Caves | Build established: Scavenger-Golem 23070 | -5/Upper Caves | Learned Factory terminal intel 23086 | -5/Upper Caves | Attracted the attention of an 0b10 checkpoint 23585 | -5/Upper Caves | Discovered new exit (range 10) 23634 | -5/Upper Caves | Identified exit to Upper Caves 23740 | -5/Upper Caves | Build established: Golem 23749 | -5/Upper Caves | Entered another Upper Caves area 23797 | -5/Upper Caves | Discovered exit to Factory (range 4) 24053 | -5/Upper Caves | Discovered new exit (range 9) 24064 | -5/Upper Caves | Identified exit to Zhirov 24093 | -5/Upper Caves | Encountered a Warlord checkpoint 24317 | -5/Upper Caves | Entered Zhirov 24330 | -5/Zhirov | Discovered new exit (range 3) 24354 | -5/Zhirov | Met Zhirov 24358 | -5/Zhirov | Build established: Scavenger-Golem 24384 | -5/Zhirov | Learned location of Testing (-3) 24384 | -5/Zhirov | Learned location of Quarantine (-2) 24384 | -5/Zhirov | Learned location of Command (-1) 24392 | -5/Zhirov | Zhirov requested help retrieving the SGEMP Prototype 24413 | -5/Zhirov | Found Alien Artifact 24413 | -5/Zhirov | Identified Integrated Dissipator 24413 | -5/Zhirov | Installed Integrated Dissipator, increased core heat dissipation (+20) 24506 | -5/Zhirov | Found Alien Artifact 24555 | -5/Zhirov | Identified exit to Proximity Caves 24981 | -5/Zhirov | Build established: Golem 25051 | -5/Zhirov | Entered Proximity Caves 25058 | -4/Proximity Caves | Learned Research terminal intel 25585 | -4/Proximity Caves | Found Alien Artifact 26197 | -4/Proximity Caves | Discovered exit to Factory (range 8) 26227 | -4/Proximity Caves | Entered Factory 26227 | -4/Factory | Evolved 2 slots: Utility x2 26228 | -4/Factory | Loaded intel: 28 terminal locations 26331 | -4/Factory | Loaded intel: 8 recycling unit locations 26614 | -4/Factory | Discovered new exit (range 9) 26623 | -4/Factory | Identified exit to Extension 26624 | -4/Factory | Entered Extension 26908 | -4/Extension | Rescued a captive Derelict 26985 | -4/Extension | Rescued a captive Derelict 27102 | -4/Extension | Spotted B-86 Titan 27106 | -4/Extension | Rescued a captive Derelict 27108 | -4/Extension | Rescued a captive Derelict 27112 | -4/Extension | Build established: Commander-Golem 27139 | -4/Extension | Spotted B-86 Titan 27147 | -4/Extension | Allies destroyed B-86 Titan 27180 | -4/Extension | Allies destroyed B-86 Titan 27198 | -4/Extension | Lost 8 allies 27230 | -4/Extension | Rescued a captive Derelict 27231 | -4/Extension | Rescued a captive Derelict 27378 | -4/Extension | Rescued A7 27450 | -4/Extension | Rescued a captive Derelict 27483 | -4/Extension | Rescued a captive Derelict 27602 | -4/Extension | Rescued a captive Derelict 27604 | -4/Extension | Rescued a captive Derelict 27633 | -4/Extension | Discovered new exit (range 10) 27634 | -4/Extension | Discovered new exit (range 6) 27701 | -4/Extension | Identified exit to Cetus 27718 | -4/Extension | Entered Cetus 27718 | -4/Cetus | Accompanied by 14 allies (A7) 27723 | -4/Cetus | Acquired a Cetus Manufacturing Module code from A7 27756 | -4/Cetus | Spotted Cetus Guard 27756 | -4/Cetus | Spotted Cetus Guard 27778 | -4/Cetus | Allies destroyed Cetus Guard 27779 | -4/Cetus | Spotted Cetus Guard 27779 | -4/Cetus | Spotted Cetus Guard 27781 | -4/Cetus | Allies destroyed Cetus Guard 27785 | -4/Cetus | Allies destroyed Cetus Guard 27841 | -4/Cetus | Started Cetus Manufacturing Module 27866 | -4/Cetus | Manufactured an Enhanced Grunt 27891 | -4/Cetus | Manufactured an Enhanced Grunt 27916 | -4/Cetus | Manufactured an Enhanced Grunt 27941 | -4/Cetus | Manufactured an Enhanced Grunt 27966 | -4/Cetus | Manufactured an Enhanced Grunt 27976 | -4/Cetus | Discovered new exit (range 15) 28128 | -4/Cetus | Murdered A7 28136 | -4/Cetus | Extracted ID and sensor layout for unrecognized location from A7's data core 28147 | -4/Cetus | Identified exit to Archives 28468 | -4/Cetus | Security sweep announced 28492 | -4/Cetus | Entered Archives 28492 | -4/Archives | Accompanied by 17 allies 28539 | -4/Archives | Discovered new exit (range 16) 28557 | -4/Archives | Identified exit to Hub_04(d) 28581 | -4/Archives | Entered Hub_04(d) 28581 | -4/Hub_04(d) | Accompanied by 16 allies 28990 | -4/Hub_04(d) | Lost 7 allies 28991 | -4/Hub_04(d) | Discovered new exit (range 8) 28999 | -4/Hub_04(d) | Network Hub disabled 29000 | -4/Hub_04(d) | Spotted Lightning 29020 | -4/Hub_04(d) | Spotted Lightning 29020 | -4/Hub_04(d) | Spotted Lightning 29023 | -4/Hub_04(d) | Identified exit to Research 29023 | -4/Hub_04(d) | Spotted Lightning 29024 | -4/Hub_04(d) | Entered Research 29024 | -3/Research | Evolved 2 slots: Utility x2 29025 | -3/Research | Loaded intel: 22 terminal locations 29052 | -3/Research | Lost 8 allies 29306 | -3/Research | Build established: Golem 29834 | -3/Research | Garrison activated, responded to threat 30427 | -3/Research | Discovered new exit (range 6) 30432 | -3/Research | Identified exit to Research 30615 | -3/Research | Loaded intel: 5 recycling unit locations 30774 | -3/Research | First assault squad dispatched 31145 | -3/Research | Entered another Research area 31145 | -2/Research | Evolved 2 slots: Utility x2 31895 | -2/Research | First assault squad dispatched 32089 | -2/Research | System corruption reached 10% 32093 | -2/Research | Identified Transdimensional Reconstructor 32093 | -2/Research | Warped through subspace 32125 | -2/Research | Core integrity fell below 50% 32154 | -2/Research | Self-destructed Last Messages --------------- 32127_ R-10 Processor collects Wheel. 32128_ Penetrated by Slug. 32128_ K-01 Serf collects debris. 32129_ R-10 Processor collects Lrg. Storage Unit. 32129_ K-01 Serf collects debris. 32129_ R-10 Processor collects Welding Torch. 32130_ R-10 Processor collects Myomer Leg. 32131_ R-10 Processor collects Lgt. Ion Engine. 32133_ System corrupted: Component data lost. 32133_ R-10 Processor collects Terrain Scanner. 32142_ Asb. Nanovents destroyed. 32144_ K-01 Serf collects debris. 32147_ Critical hit (Burn: +37). 32147_ Asb. Biocell Array destroyed. 32147_ Slug penetrates Wall. 32147_ GOLEM Unit destroyed. 32147_ Slug penetrates Wall. 32148_ System corrupted: Matter fused (-7). 32148_ Slug penetrates Wall. Map ----- +----------------------------------------------------+ | ?????????????????????????????????????????????????? | | ?????????????????????????????????????????????????? | | ?????????????????????????????????????????????????? | | ?????????????????????????????????????????????????? | | ?????????????????????????????????????????????????? | | ?????????????????????????????????????????????????? | | ?????????????????????????????????????????????????? | | ?????????????????????????????????????????????????? | | ?????????????????????????????????????????????????? | | ?????????????????????????????????????????????????? | | ?????????????????????????????????????????????????? | | ?????????????????????????????????????????????????? | | ?????????????????????????????????????????????????? | | ?????????????????????????????????????????????????? | | ?????????????????????????????????????????????????? | | ?????????????????????????????????????????????????? | | ?????????????????????????????????????????????????? | | ?????????????????????????????????????????????????? | | ?????????????????????????????????????????????????? | | ?????????????????????????????????????????????????? | | ?????????????????????????????????????????????????? | | ???????????????????????##############????????????? | | ???????????????????????# #????????????? | | ???????????????????????# #????????????? | | ???????????????????????# #????????????? | | #??????????????????????# @ #????????????? | | #??????????????????????# #????????????? | | #??????????????????????#+#######+####????????????? | | #??????????????????????# #???# #?????????????? | | #??????????????????????# ##### #?????????????? | | #??????????????????????# +?????????????? | | #??????????????????????#### #?????????????? | | #?????????????????????????# #?????????????? | | #???????????????????? ????# ###?????????????? | | #????#######???????? ????# #???????????????? | | #????! ???????? ????# #???????????????? | | ?????? ?#?????? ????# #???????????????? | | ?????? [ #?????? ????# #???????????????? | | #????? #???????# ##### #???????????????? | | #????? #???????# #???????????????? | | #?????? #???????# #????#######????? | | #?????? #???????# #??? ???? | | ??????? ????????# #??? ???? | | ??????? ?????????# #?? #??? | | ########+############ #? ???? | | = !|% # ?????? | | = ! % # """"???????? | | + """"???????? | | # """"???????? | | #/####################+###### #?? """"???????? | +----------------------------------------------------+ Best States ------------- Heat Dissipation 114 Coolant Potential 50 Energy Generation 49 Energy Capacity 2100 Matter Stores 300 Matter Capacity 600 Sight Range 16 Robot Scan Range 18 Terrain Scan Range 30 Terrain Scan Density 210 Additional Mass Support 20 Armor Coverage 1200 Resistance: KI 15 Resistance: TH 15 Resistance: EX 15 Resistance: EM 15 Resistance: I 15 Resistance: S 15 Resistance: P 15 Power Shielding 66 Weapon Shielding 100 Phase Shifting 8 Evasion (%) 65 Targeting Accuracy 8 Core Analysis 8 Recoil Reduction 4 Offensive Hacking 21 Item Schematics ----------------- Lyr. Medium Armor Plating | -6/Zion | Archive Imp. Launcher Guidance Computer | -6/Zion | Archive Fission Core | -6/Zion | Archive Point Defense System | -6/Zion | Archive Imp. Particle Charger | -6/Zion | Archive Imp. Component Analysis Suite | -6/Zion | Archive Remote Shield | -6/Zion | Archive Dispersion Rifle | -6/Zion | Archive Imp. Remote Shield | -6/Zion | Archive Focal Shield | -6/Zion | Archive Imp. Remote Datajack | -6/Zion | Archive Drone Bay | -6/Zion | Archive Adv. Trap Extractor | -6/Zion | Archive Assault Drone Bay | -5/Zhirov | Free Exp. Heat Sink | -5/Zhirov | Free Exp. Optical Array | -5/Zhirov | Free Imp. Arc Thrower | -5/Zhirov | Free Robot Schematics ------------------ A-15 Conveyor | -6/Zion | Archive W-25 Informer | -6/Zion | Archive K-01 Serf | -6/Zion | Archive Fabricated ------------ Nothing Repaired ---------- Disposable Heat Sink | 12% | -9/Storage Studied --------- None Alien Tech Used ----------------- Integrated Dissipator Transdimensional Reconstructor Achievements -------------- None Challenges ------------ None Game ------ Seed CentriumAmuletImmobilizer Manual? 0 Play Time 02:50:09 Cumulative 512.6 hours Start 2025.11.06 @ 19:38:36 End 2025.11.06 @ 23:22:59 Sessions 3 Manual Loads 0 Difficulty Rogue Special Mode None Game No. 849 Rogue 694 Adventurer 148 Explorer 7 Win Type - Total 24 Types 19/1/3/1/0/0/0/0/0/0 Lore% 76 Gallery% 79 Achievement% 61 Wizard Run 0 Options --------- Layout 1 ASCII 0 Keyboard 0 Movement Numpad Keybinds 0 Fullscreen 2 Font 24/Smallcaps Map View 50x35 Zoom Use 0% Tactical HUD 1 Map Filters NONE Filters NONE Steam 1 RUN: 0deb2d8d-7d41-4e29-9e03-7ac5eb3a4acb